fUST/lending_fUST_20260223
["ID","MTS","AMOUNT","RATE_DAILY","PERIOD"]
[406389776,1771858145288,-500.0,0.00013273,2]
[406389777,1771858145306,-500.0,0.00013273,2]
[406389778,1771858145325,-500.0,0.00013273,2]
[406389779,1771858145344,-500.0,0.00013273,2]
[406389780,1771858145363,-587.12974258,0.00013273,2]
[406389781,1771858145382,-501.01245744,0.00013273,2]
[406389782,1771858145401,-500.0,0.00013273,2]
[406389783,1771858145420,-500.0,0.00013273,2]
[406389784,1771858145442,-500.0,0.00013273,2]
[406389785,1771858145460,-500.0,0.00013273,2]
[406389786,1771858145479,-500.0,0.00013273,2]
[406389787,1771858145498,-690.49898192,0.00013273,2]
[406389788,1771858145517,-301.13703024,0.00013273,2]
[406389789,1771858145536,-300.0,0.00013673,2]
[406389790,1771858145555,-500.0,0.0001382,2]
[406389791,1771858145574,-500.0,0.0001382,2]
[406389792,1771858145604,-500.0,0.0001382,2]
[406389793,1771858145623,-460.49856353,0.0001382,2]
[406389794,1771858145689,-39.50143647,0.0001382,2]
[406389795,1771858145709,-500.0,0.0001382,2]
[406389796,1771858145729,-500.0,0.00013821,2]
[406389797,1771858145750,-278.0,0.00014551,2]
[406389798,1771858145772,-177.0,0.00015075,2]
[406389799,1771858145792,-500.0,0.00015342,2]
[406389800,1771858145811,-593.47596775,0.00015342,2]
[406389801,1771858145830,-239.0,0.000156,14]
[406389802,1771858145851,-753.60139161,0.00016,2]
[406389803,1771858146090,-224.2769888,0.00016233,2]
[406389804,1771858146115,-150.07290783,0.00016438,2]
[406389805,1771858146137,-183.8187514,0.00016672,2]
[406389806,1771858146164,-204.0,0.00017075,2]
[406389807,1771858146189,-250.0,0.00017346,2]
[406389808,1771858146219,-150.0,0.00017808,2]
[406389809,1771858146252,-250.0,0.00018356,2]
[406389810,1771858146278,-152.86786227,0.00018904,2]
[406389811,1771858146307,-231.0,0.00019075,2]
[406389812,1771858146332,-4440.4589777,0.00019321,2]
[406389813,1771858146358,-181.5679265,0.00020139,2]
[406389814,1771858146382,-258.0,0.00021075,2]
[406389815,1771858146410,-327.56385842,0.00021215,2]
[406389816,1771858146438,-211.83884643,0.00021242,2]
[406389817,1771858146463,-847.35538573,0.00021242,2]
[406389818,1771858146488,-500.0,0.00021546,2]
[406389819,1771858146514,-223.42479011,0.00021546,2]
[406389820,1771858146539,-500.0,0.0002182,2]
[406389821,1771858146562,-549.36450005,0.00022094,2]
[406389822,1771858146585,-310.63447136,0.00022213,2]
[406389823,1771858146608,-1906.54961788,0.00022246,2]
[406389824,1771858146631,-285.0,0.00023075,2]
[406389825,1771858146656,-653.77374627,0.00024398,2]
[406389833,1771858175992,-2735.64779664,0.00024398,2]
[406389834,1771858176019,-589.61494516,0.00024472,2]
[406389835,1771858176041,-500.0,0.00024616,2]
[406389836,1771858176062,-551.24134551,0.00024616,2]
[406389837,1771858176086,-500.0,0.00024616,2]
[406389838,1771858176107,-500.0,0.00024616,2]
[406389839,1771858176130,-500.0,0.00024616,2]
[406389840,1771858176151,-500.0,0.00024616,2]
[406389841,1771858176173,-500.0,0.00024616,2]
[406389842,1771858176193,-500.0,0.00024616,2]
[406389843,1771858176216,-500.0,0.00024616,2]
[406389844,1771858176235,-500.0,0.00024616,2]
[406389845,1771858176255,-500.0,0.00024616,2]
[406389846,1771858176278,-500.0,0.00024616,2]
[406389847,1771858176300,-500.0,0.00024616,2]
[406389848,1771858176323,-500.0,0.00024616,2]
[406389849,1771858176343,-500.0,0.00024616,2]
[406389850,1771858176364,-115.79505389,0.00024616,2]
[406389865,1771858232268,-184.1928171,0.00017257,2]
[406389866,1771858232279,-151.13409985,0.00017808,2]
[406389867,1771858232288,-253.46593381,0.0001932,2]
[406389868,1771858232297,-184.1928171,0.00020019,2]
[406389869,1771858232307,-184.1928171,0.00022781,2]
[406389870,1771858232316,-3190.53801193,0.00024516,2]
[406389871,1771858232325,-384.20494611,0.00024616,2]
[406389872,1771858232334,-70.06653818,0.00024616,2]
[406389892,1771858232598,-429.93346182,0.00024616,2]
[406389894,1771858232608,-500.0,0.00024616,2]
[406389896,1771858232618,-500.0,0.00024616,2]
[406389898,1771858232627,-500.0,0.00024616,2]
[406389900,1771858232637,-500.0,0.00024616,2]
[406389903,1771858232647,-500.0,0.00024616,2]
[406389905,1771858232657,-500.0,0.00024616,2]
[406389907,1771858232666,-500.0,0.00024616,2]
[406389909,1771858232675,-431.10252173,0.00024616,2]
[406389911,1771858232685,-500.0,0.00024616,2]
[406389912,1771858232694,-500.0,0.00024616,2]
[406389915,1771858232704,-500.0,0.00024616,2]
[406389917,1771858232714,-500.0,0.00024616,2]
[406389919,1771858232723,-500.0,0.00024616,2]
[406389921,1771858232734,-500.0,0.00024616,2]
[406389923,1771858232743,-500.0,0.00024616,2]
[406389925,1771858232755,-500.0,0.00024616,2]
[406389927,1771858232765,-500.0,0.00024616,2]
[406389929,1771858232775,-500.0,0.00024616,2]
[406389931,1771858232784,-500.0,0.00024616,2]
[406389933,1771858232794,-500.0,0.00024616,2]
[406389935,1771858232803,-500.0,0.00024616,2]
[406389937,1771858232813,-500.0,0.00024616,2]
[406389939,1771858232822,-345.87647825,0.00024616,2]
[406389941,1771858232832,-500.0,0.00024616,2]
[406389943,1771858232842,-500.0,0.00024616,2]
[406389945,1771858232852,-500.0,0.00024616,2]
[406389947,1771858232863,-500.0,0.00024616,2]
[406389949,1771858232872,-500.0,0.00024616,2]
[406389951,1771858232882,-500.0,0.00024616,2]
[406389953,1771858232891,-210.46116504,0.00024616,2]
[406390078,1771858238141,-402.1646222,0.00024617,2]
[406390079,1771858238151,-559.14204844,0.00024617,2]
[406390080,1771858238162,-62.25668702,0.00025204,6]
[406390081,1771858238172,-1227.87205886,0.00025278,2]
[406390082,1771858238182,-184.1928171,0.00025543,2]
[406390083,1771858238191,-1227.87205883,0.00026434,2]
[406390084,1771858238202,-219.12663327,0.00026475,19]
[406390085,1771858238214,-235.65336673,0.00026475,19]
[406390086,1771858238224,-500.0,0.00026619,2]
[406390087,1771858238234,-500.0,0.00026619,2]
[406390088,1771858238244,-500.0,0.00026619,2]
[406390089,1771858238256,-500.0,0.00026619,2]
[406390090,1771858238266,-500.0,0.00026619,2]
[406390091,1771858238275,-500.0,0.00026619,2]
[406390092,1771858238285,-500.0,0.00026619,2]
[406390094,1771858238295,-500.0,0.00026619,2]
[406390096,1771858238305,-500.0,0.00026619,2]
[406390098,1771858238318,-209.40437684,0.00026619,2]
[406390100,1771858238329,-500.0,0.00026619,2]
[406390103,1771858238339,-217.15233878,0.00026619,2]
[406390105,1771858238349,-500.0,0.00026619,2]
[406390107,1771858238359,-467.39207202,0.00026619,2]
[406390108,1771858238372,-32.60792798,0.00026619,2]
[406390109,1771858238381,-225.18697532,0.00026619,2]
[406390110,1771858238391,-500.0,0.00026619,2]
[406390111,1771858238401,-175.97269697,0.00026619,2]
[406390409,1771858243401,-2935.88738262,0.0002,5]
[406390410,1771858243412,-324.02730303,0.00026619,2]
[406390411,1771858243421,-233.51889341,0.00026619,2]
[406390412,1771858243431,-634.45555539,0.00026619,2]
[406390413,1771858243441,-500.0,0.00026619,2]
[406390414,1771858243450,-242.15909246,0.00026619,2]
[406390415,1771858243460,-500.0,0.00026619,2]
[406390416,1771858243470,-251.11897888,0.00026619,2]
[406390417,1771858243479,-500.0,0.00026619,2]
[406390418,1771858243488,-500.0,0.00026619,2]
[406390419,1771858243498,-260.4103811,0.00026619,2]
[406390420,1771858243509,-270.0455652,0.00026619,2]
[406390421,1771858243519,-280.03725112,0.00026619,2]
[406390422,1771858243529,-290.39862941,0.00026619,2]
[406390423,1771858243538,-301.1433787,0.00026619,2]
[406390424,1771858243548,-500.0,0.00026676,7]
[406390425,1771858243558,-1227.87205883,0.00027589,2]
[406390426,1771858243568,-3190.53801191,0.00028036,2]
[406390427,1771858243578,-500.0,0.00028728,7]
[406390428,1771858243587,-1227.87205883,0.00028745,2]
[406390429,1771858243597,-500.0,0.00029234,7]
[406390430,1771858243607,-500.0,0.00029365,7]
[406390431,1771858243616,-168.0,0.00029713,2]
[406390432,1771858243626,-344.2368723,0.00029738,2]
[406390433,1771858243635,-500.0,0.00029756,16]
[406390434,1771858243645,-500.0,0.00029756,16]
[406390436,1771858243654,-688.4737446,0.00029758,2]
[406390437,1771858243663,-602.75,0.00029758,3]
[406390438,1771858243672,-301.37,0.00029758,3]
[406390439,1771858243683,-150.69,0.00029758,3]
[406390440,1771858243692,-452.08,0.00029758,3]
[406390441,1771858243702,-8905.91,0.00029758,10]
[406390442,1771858243711,-7421.6,0.00029758,10]
[406390443,1771858243721,-65634.63001187,0.00029768,2]
[406390444,1771858243733,-41123.36519687,0.00029768,2]
[406390491,1771858623195,-300.0,0.00011116,11]
[406390492,1771858632721,-300.0,0.00011116,11]
[406390493,1771858633990,-300.0,0.00011116,11]
[406390494,1771858650040,-300.0,0.00011116,11]
[406390495,1771858784693,-150.0,0.0001106,2]
[406390501,1771858844477,-73.86184456,0.0001106,2]
[406390504,1771859009587,151.0,9.5e-05,2]
[406390505,1771859046341,1359.0,9.5e-05,2]
[406390527,1771859147119,-229.97162794,0.00010791,2]
[406390528,1771859235088,-896.33306164,0.00010791,2]
[406390529,1771859235109,-169.58,0.000109,2]
[406390530,1771859235130,-436.02862007,0.00011,2]
[406390531,1771859235150,-150.0,0.00011005,2]
[406390532,1771859235169,-575.0,0.0001106,2]
[406390533,1771859235190,-164.73236289,0.00011228,2]
[406390534,1771859235211,-177.0,0.00013005,2]
[406390535,1771859235231,-503.89992485,0.00013273,2]
[406390536,1771859235252,-320.24175355,0.00013699,2]
[406390537,1771859235272,-150.55506259,0.00015005,2]
[406390538,1771859235293,-180.26624668,0.000164,2]
[406390539,1771859235313,-454.01731039,0.000164,2]
[406390540,1771859254169,-2124.2444562,0.000164,2]
[406390541,1771859254190,-500.0,0.00017807,2]
[406390542,1771859254210,-300.0,0.00019318,2]
[406390543,1771859254232,-1200.0,0.00019319,2]
[406390544,1771859254256,-502.23497652,0.0001932,2]
[406390545,1771859254277,-500.0,0.0001932,2]
[406390546,1771859254313,-501.94541573,0.0001932,2]
[406390547,1771859254339,-420.0,0.0002105,2]
[406390548,1771859254362,-434.0,0.00021153,2]
[406390549,1771859254386,-246.4912223,0.00021198,2]
[406390550,1771859254407,-150.0,0.00021918,2]
[406390551,1771859254431,-250.0,0.00022466,2]
[406390552,1771859254455,-587.0,0.00022937,2]
[406390553,1771859254476,-653.17866867,0.00023,2]
[406390554,1771859254497,-151.08805252,0.00023014,2]
[406390555,1771859254518,-500.0,0.00024615,2]
[406390556,1771859254539,-500.0,0.00024615,2]
[406390557,1771859254561,-157.21888226,0.0002465,2]
[406390558,1771859254581,-282.99398806,0.0002465,2]
[406390559,1771859254601,-720.0,0.00024993,2]
[406390560,1771859254622,-500.0,0.00026474,16]
[406390561,1771859254644,-500.0,0.00027096,7]
[406390562,1771859254664,-741.7013209,0.00027688,2]
[406390563,1771859254684,-388.83971634,0.00028,2]
[406390565,1771859312061,322.65873,0.000136,30]
[406390597,1771859432212,-273.65005142,0.00028,2]
[406390686,1771859438391,-1243.39472407,0.00028,2]
[406390687,1771859438403,-176.9027374,0.00028,2]
[406390688,1771859438414,-660.39023897,0.00028,5]
[406390690,1771859438724,-135.15034435,0.00028,5]
[406390691,1771859438885,-210.1953268,0.00028,5]
[406390692,1771859438895,-150.0,0.00028,5]
[406390693,1771859438905,-507.10094952,0.00028,2]
[406390705,1771859440718,-375.89905048,0.00028,2]
[406390706,1771859440727,-500.0,0.00028344,7]
[406390707,1771859440737,-300.0,0.00028486,17]
[406390708,1771859440747,-250.0,0.00028548,5]
[406390709,1771859440756,-350.0,0.00029096,5]
[406390710,1771859440766,-3227.46094825,0.00029141,2]
[406390711,1771859440775,-769.91814708,0.0002916,2]
[406390712,1771859440784,-156.0,0.00029177,10]
[406390713,1771859440794,-500.0,0.00029255,2]
[406390714,1771859440803,-500.0,0.00029255,2]
[406390715,1771859440812,-500.0,0.00029259,2]
[406390716,1771859440821,-500.0,0.00029259,2]
[406390717,1771859440831,-511.7467599,0.00029259,2]
[406390718,1771859440841,-165.13571725,0.00029259,2]
[406390719,1771859440850,-25588.6205461,0.0002926,2]
[406390720,1771859440859,-9687.25690503,0.0002926,2]
[406390721,1771859440919,-1.70660383,0.0002926,2]
[406390722,1771859440941,-1467.54687087,0.0002926,2]
[406390744,1771859443552,-790.99,0.0002926,2]
[406390747,1771859443723,-1474.48378277,0.0002926,2]
[406390748,1771859443735,-769.91814706,0.00029345,2]
[406390749,1771859443745,-769.91814706,0.0002953,2]
[406390750,1771859443755,-450.0,0.00029644,5]
[406390751,1771859443764,-2500.0,0.000297,2]
[406390752,1771859443774,-769.91814706,0.00029715,2]
[406390753,1771859443785,-375.55459445,0.00029728,10]
[406390754,1771859443974,-25.5524031,0.00029728,10]
[406390760,1771859446367,-273.59,0.00029194,2]
[406390761,1771859446376,-802.0264,0.00029728,10]
[406390763,1771859456340,513.64867186,0.00024953,11]
[406390764,1771859468268,490.0,0.00024703,11]
[406390774,1771859498300,-4510.0,0.00024703,11]
[406390775,1771859498323,-980.0,0.00024953,11]
[406390832,1771860006830,389.18,6.5e-05,2]
[406390833,1771860007928,389.18,6.5e-05,2]
[406390834,1771860008502,389.18,6.5e-05,2]
[406390835,1771860009196,389.18,6.5e-05,2]
[406390836,1771860009907,389.18,6.5e-05,2]
[406390837,1771860010864,389.18,6.5e-05,2]
[406390843,1771860011560,389.18,6.5e-05,2]
[406390844,1771860012260,389.18,6.6e-05,2]
[406390845,1771860012830,389.18,6.6e-05,2]
[406390846,1771860013733,389.18,6.6e-05,2]
[406390847,1771860014830,389.18,6.6e-05,2]
[406390848,1771860015547,389.18,6.6e-05,2]
[406390849,1771860016331,389.18,6.6e-05,2]
[406390850,1771860017069,154.95816013,6.6e-05,2]
[406390851,1771860017096,234.22183987,6.6e-05,2]
[406390852,1771860018203,389.18,6.6e-05,2]
[406390853,1771860018902,389.18,6.6e-05,2]
[406390854,1771860019641,389.18,6.6e-05,2]
[406390855,1771860020621,389.18,6.6e-05,2]
[406390856,1771860021748,389.18,6.6e-05,2]
[406390857,1771860022824,389.18,6.7e-05,2]
[406390858,1771860023558,389.18,6.7e-05,2]
[406390859,1771860024643,389.18,6.7e-05,2]
[406390860,1771860025248,389.18,6.7e-05,2]
[406390861,1771860026143,389.18,6.7e-05,2]
[406390862,1771860026834,389.18,6.7e-05,2]
[406390863,1771860027518,389.18,6.7e-05,2]
[406390864,1771860028208,389.18,6.7e-05,2]
[406390865,1771860028990,389.18,6.7e-05,2]
[406390866,1771860029535,389.18,6.7e-05,2]
[406390867,1771860030510,389.18,6.7e-05,2]
[406390868,1771860032190,389.18,6.7e-05,2]
[406390869,1771860033056,389.18,6.8e-05,2]
[406390870,1771860033804,389.18,6.8e-05,2]
[406390871,1771860034737,389.18,6.8e-05,2]
[406390872,1771860035274,389.18,6.8e-05,2]
[406390873,1771860036937,389.18,6.8e-05,2]
[406390874,1771860038036,389.18,6.8e-05,2]
[406390875,1771860038850,389.18,6.8e-05,2]
[406390876,1771860039924,389.18,6.8e-05,2]
[406390877,1771860040626,389.18,6.8e-05,2]
[406390878,1771860041789,389.18,6.8e-05,2]
[406390879,1771860042436,389.18,6.8e-05,2]
[406390880,1771860043131,389.18,6.8e-05,2]
[406390881,1771860043884,389.18,6.9e-05,2]
[406390882,1771860044825,389.18,6.9e-05,2]
[406390883,1771860045536,389.18,6.9e-05,2]
[406390884,1771860046927,389.18,6.9e-05,2]
[406390885,1771860047627,389.18,6.9e-05,2]
[406390886,1771860048413,389.18,6.9e-05,2]
[406390887,1771860049097,389.18,6.9e-05,2]
[406390897,1771860154639,260.0,0.000136,30]
[406390902,1771860215843,260.0,0.000136,30]
[406390903,1771860224838,-150.0,0.0001156,13]
[406390904,1771860231110,-150.0,0.0001156,13]
[406390920,1771860233586,-74.51,0.0001156,13]
[406390955,1771860275327,260.0,0.000136,30]
[406390967,1771860334866,298.17,0.000136,30]
[406390981,1771860440155,-554.96709898,0.00011105,2]
[406390987,1771860450783,-1281.09366995,0.00011105,2]
[406391009,1771860550073,-1157.3927457,0.00010884,2]
[406391010,1771860553130,-3842.6072543,0.00010884,2]
[406391011,1771860553151,-150.0,0.00010939,2]
[406391012,1771860553170,-5000.0,0.00010994,2]
[406391013,1771860553191,-3163.93923107,0.00011105,2]
[406391014,1771860553214,-1200.0,0.00011329,2]
[406391015,1771860553234,-300.0,0.00011443,2]
[406391016,1771860553254,-300.0,0.00011443,2]
[406391017,1771860553273,-300.0,0.00011443,2]
[406391018,1771860553293,-10000.0,0.00011989,2]
[406391019,1771860553314,-1064.54970569,0.00012462,2]
[406391020,1771860558116,-135.45029431,0.00012462,2]
[406391021,1771860558140,-158.0,0.00012569,2]
[406391022,1771860558162,-210.0752639,0.00012939,2]
[406391023,1771860558184,-868.49988555,0.00015,2]
[406391024,1771860558205,-275.41647014,0.0001515,20]
[406391025,1771860558228,-358.22273193,0.00017999,2]
[406391026,1771860558251,-500.0,0.00017999,2]
[406391027,1771860558272,-500.0,0.00017999,2]
[406391028,1771860558296,-500.0,0.00017999,2]
[406391029,1771860558317,-500.0,0.00017999,2]
[406391030,1771860558339,-500.0,0.00017999,2]
[406391031,1771860558361,-500.0,0.00017999,2]
[406391032,1771860558397,-500.0,0.00017999,2]
[406391033,1771860558419,-500.0,0.00017999,2]
[406391034,1771860558441,-500.0,0.00017999,2]
[406391035,1771860558462,-500.0,0.00017999,2]
[406391036,1771860558485,-500.0,0.00017999,2]
[406391037,1771860558507,-500.0,0.00017999,2]
[406391038,1771860558528,-500.0,0.00017999,2]
[406391039,1771860558550,-371.29427272,0.00017999,2]
[406391040,1771860558572,-500.0,0.00017999,2]
[406391041,1771860558594,-500.0,0.00017999,2]
[406391042,1771860558618,-500.0,0.00017999,2]
[406391043,1771860558641,-500.0,0.00017999,2]
[406391044,1771860558665,-500.0,0.00017999,2]
[406391045,1771860558690,-500.0,0.00017999,2]
[406391046,1771860558718,-500.0,0.00017999,2]
[406391047,1771860558740,-500.0,0.00017999,2]
[406391048,1771860558764,-160.90475751,0.00017999,2]
[406391049,1771860563096,-5000.0,0.00012337,2]
[406391050,1771860603111,390.0,0.0001525,120]
[406391051,1771860603136,10279.899999,0.0001525,120]
[406391086,1771860632466,-2453.10091226,0.00017465,2]
[406391088,1771860632478,-2546.89908774,0.00017465,2]
[406391090,1771860632488,-677.0,0.00017465,2]
[406391092,1771860632497,-1943.3670251,0.00017499,2]
[406391094,1771860632507,-5000.0,0.00017641,2]
[406391096,1771860632517,-5000.0,0.00017819,2]
[406391100,1771860632528,-996.06194815,0.00017999,2]
[406391103,1771860632538,-339.09524249,0.00017999,2]
[406391106,1771860632548,-500.0,0.00017999,2]
[406391108,1771860632558,-186.7632445,0.00017999,2]
[406391110,1771860632567,-500.0,0.00017999,2]
[406391111,1771860632576,-500.0,0.00017999,2]
[406391114,1771860632585,-500.0,0.00017999,2]
[406391115,1771860632594,-500.0,0.00017999,2]
[406391117,1771860632604,-500.0,0.00017999,2]
[406391120,1771860632613,-500.0,0.00017999,2]
[406391122,1771860632622,-500.0,0.00017999,2]
[406391124,1771860632631,-311.32732735,0.00017999,2]
[406391126,1771860632643,-188.67267265,0.00017999,2]
[406391128,1771860632652,-500.0,0.00017999,2]
[406391130,1771860632662,-500.0,0.00017999,2]
[406391132,1771860632671,-12.52979151,0.00017999,2]
[406391136,1771860632700,-59.89014285,0.00017999,2]
[406391176,1771860638601,-747.13445252,0.0001729,2]
[406391179,1771860638613,-679.14097726,0.0001729,2]
[406391180,1771860638624,-1316.57769922,0.0001729,2]
[406391195,1771860641181,-2257.146871,0.0001729,2]
[406391196,1771860641190,-1050.353129,0.00018,2]
[406391212,1771860646550,-522.10750984,0.00017117,2]
[406391213,1771860646643,-825.16508036,0.00017117,2]
[406391214,1771860646653,-354.08480495,0.00017998,2]
[406391215,1771860646664,-500.0,0.00017998,2]
[406391216,1771860646675,-267.68014791,0.00017998,2]
[406391217,1771860647122,-232.31985209,0.00017998,2]
[406391218,1771860647134,-33.46833378,0.00017998,2]
[406391219,1771860647147,-466.53166622,0.00017998,2]
[406391220,1771860647157,-500.0,0.00017998,2]
[406391221,1771860647168,-500.0,0.00017998,2]
[406391222,1771860647178,-286.56559367,0.00017998,2]
[406391228,1771860682242,-460.78714635,0.00016777,2]
[406391370,1771861084723,157.42,8.238e-05,2]
[406391371,1771861085061,157.4,8.238e-05,2]
[406391373,1771861207715,270.66,9.5e-05,2]
[406391375,1771861208643,270.66,9.5e-05,2]
[406391376,1771861209377,270.66,9.5e-05,2]
[406391378,1771861227824,5000.0,9.501e-05,2]
[406391379,1771861235960,3813.76989493,9.501e-05,2]
[406391381,1771861250697,2357.30119162,9.501e-05,2]
[406391382,1771861287451,4250.0,0.0001,120]
[406391383,1771861287505,5000.0,9.501e-05,2]
[406391384,1771861309846,1591.89010797,9.501e-05,2]
[406391417,1771861629139,-593.1907256,9.599e-05,2]
[406391420,1771861647142,-248.47096548,9.599e-05,2]
[406391429,1771861669585,2125.0,0.0001,120]
[406391435,1771861745115,-358.33830892,9.599e-05,2]
[406391436,1771861745136,-270.66,9.6e-05,2]
[406391437,1771861745155,-270.66,9.6e-05,2]
[406391438,1771861745175,-270.66,9.6e-05,2]
[406391439,1771861745195,-270.66,9.6e-05,2]
[406391440,1771861745215,-270.66,9.6e-05,2]
[406391441,1771861745236,-207.88,9.6e-05,2]
[406391442,1771861745257,-150.0,9.649e-05,2]
[406391443,1771861745280,-504.13972864,9.695e-05,2]
[406391444,1771861745304,-500.0,9.695e-05,2]
[406391445,1771861745326,-500.0,9.695e-05,2]
[406391446,1771861745430,-500.0,9.695e-05,2]
[406391447,1771861745453,-500.0,9.695e-05,2]
[406391448,1771861745475,-500.0,9.695e-05,2]
[406391449,1771861745496,-500.0,9.695e-05,2]
[406391450,1771861745517,-500.0,9.695e-05,2]
[406391451,1771861745538,-500.0,9.695e-05,2]
[406391452,1771861745560,-500.0,9.695e-05,2]
[406391453,1771861745581,-500.0,9.695e-05,2]
[406391454,1771861745602,-500.0,9.695e-05,2]
[406391455,1771861745624,-500.0,9.695e-05,2]
[406391456,1771861745645,-500.0,9.695e-05,2]
[406391457,1771861745665,-500.0,9.695e-05,2]
[406391458,1771861745787,-370.21027336,9.695e-05,2]
[406391459,1771861745808,-500.0,9.695e-05,2]
[406391460,1771861745829,-500.0,9.695e-05,2]
[406391461,1771861745851,-500.0,9.695e-05,2]
[406391462,1771861745872,-500.0,9.695e-05,2]
[406391463,1771861745893,-500.0,9.695e-05,2]
[406391464,1771861745914,-500.0,9.695e-05,2]
[406391465,1771861745934,-500.0,9.695e-05,2]
[406391466,1771861745956,-500.0,9.695e-05,2]
[406391467,1771861745979,-500.0,9.695e-05,2]
[406391468,1771861745999,-500.0,9.695e-05,2]
[406391469,1771861746021,-500.0,9.695e-05,2]
[406391470,1771861746043,-500.0,9.695e-05,2]
[406391471,1771861746064,-500.0,9.695e-05,2]
[406391472,1771861746085,-500.0,9.695e-05,2]
[406391473,1771861746106,-500.0,9.695e-05,2]
[406391474,1771861746132,-578.82103797,9.695e-05,2]
[406391475,1771861746151,-500.0,9.695e-05,2]
[406391476,1771861746172,-500.0,9.695e-05,2]
[406391477,1771861746195,-500.0,9.695e-05,2]
[406391478,1771861746216,-500.0,9.695e-05,2]
[406391479,1771861746239,-500.0,9.695e-05,2]
[406391480,1771861746262,-482.31664938,9.695e-05,2]
[406391481,1771861746285,-500.0,9.695e-05,2]
[406391482,1771861746307,-500.0,9.695e-05,2]
[406391483,1771861746329,-500.0,9.695e-05,2]
[406391484,1771861746349,-500.0,9.695e-05,2]
[406391485,1771861746373,-500.0,9.695e-05,2]
[406391486,1771861746395,-500.0,9.695e-05,2]
[406391487,1771861746416,-500.0,9.695e-05,2]
[406391488,1771861746437,-500.0,9.695e-05,2]
[406391489,1771861746460,-455.56972612,9.695e-05,2]
[406391491,1771861749113,-44.43027388,9.695e-05,2]
[406391492,1771861749141,-500.0,9.695e-05,2]
[406391493,1771861749175,-500.0,9.695e-05,2]
[406391494,1771861749203,-500.0,9.695e-05,2]
[406391495,1771861749230,-500.0,9.695e-05,2]
[406391496,1771861749257,-500.0,9.695e-05,2]
[406391497,1771861749284,-500.0,9.695e-05,2]
[406391498,1771861749311,-500.0,9.695e-05,2]
[406391499,1771861749337,-500.0,9.695e-05,2]
[406391500,1771861749363,-500.0,9.695e-05,2]
[406391501,1771861749387,-500.0,9.695e-05,2]
[406391502,1771861749411,-500.0,9.695e-05,2]
[406391503,1771861749435,-500.0,9.695e-05,2]
[406391504,1771861749460,-500.0,9.695e-05,2]
[406391505,1771861749487,-195.68411786,9.695e-05,2]
[406391506,1771861749513,-500.0,9.695e-05,2]
[406391507,1771861749543,-500.0,9.695e-05,2]
[406391508,1771861749568,-500.0,9.695e-05,2]
[406391509,1771861749591,-500.0,9.695e-05,2]
[406391510,1771861749619,-500.0,9.695e-05,2]
[406391511,1771861749651,-500.0,9.695e-05,2]
[406391512,1771861749676,-500.0,9.695e-05,2]
[406391513,1771861749703,-500.0,9.695e-05,2]
[406391514,1771861749730,-275.81296105,9.695e-05,2]
[406391515,1771861749754,-242.68569828,9.695e-05,2]
[406391516,1771861753490,-57.31430172,9.695e-05,2]
[406391517,1771861753526,-32992.8466596,9.695e-05,2]
[406391518,1771861753561,-500.0,9.696e-05,2]
[406391519,1771861753595,-153.70844518,9.696e-05,2]
[406391520,1771861753629,-300.0,9.697e-05,2]
[406391521,1771861753662,-300.0,9.697e-05,2]
[406391522,1771861753696,-300.0,9.697e-05,2]
[406391523,1771861753734,-500.0,9.699e-05,2]